bitfinex/quotes_SOLUSD_20220307
["timestamp","ask_amount","ask_price","bid_price","bid_amount"]
[1646667345570,1.56794177,85.495,85.404,186.76]
[1646667345772,1.56794177,85.498,85.406,186.76]
[1646667345970,1.56794177,85.499,85.411,186.76]
[1646667346170,1.56794177,85.5,85.413,186.76]
[1646667346371,37.24850348,85.498,85.418,58.35]
[1646667346570,7.41694177,85.499,85.423,70.06]
[1646667346775,1.56794177,85.513,85.425,186.76]
[1646667346973,114.1,85.52,85.431,186.76]
[1646667347171,114.1,85.52,85.451,186.76]
[1646667347373,1.56794177,85.535,85.453,186.76]
[1646667347576,35.95385777,85.534,85.455,186.76]
[1646667347771,1.56794177,85.536,85.457,186.76]
[1646667347972,1.56794177,85.536,85.458,122.95]
[1646667348171,6.0,85.535,85.456,6.25]
[1646667348371,1.56794177,85.533,85.459,0.25]
[1646667348571,7.56794177,85.532,85.459,6.25]
[1646667348771,52.09514753,85.531,85.459,6.0]
[1646667348973,6.0,85.53,85.458,58.35]
[1646667349172,1.56794177,85.522,85.458,58.35]
[1646667349376,6.0,85.53,85.458,58.35]
[1646667349377,1.81794177,85.521,85.458,58.35]
[1646667349571,1.56794177,85.526,85.458,58.35]
[1646667349773,1.56794177,85.526,85.453,22.5728]
[1646667349774,1.56794177,85.522,85.453,22.5728]
[1646667349972,1.56794177,85.517,85.453,22.5728]
[1646667350173,1.56794177,85.515,85.421,70.06]
[1646667350373,1.56794177,85.515,85.438,2.83613526]
[1646667350573,1.56794177,85.54,85.439,6.0]
[1646667350777,1.56794177,85.526,85.439,6.0]
[1646667350975,1.56794177,85.53,85.439,6.0]
[1646667351176,36.43113993,85.529,85.436,6.0]
[1646667351375,36.43113993,85.529,85.437,0.25]
[1646667351376,1.56794177,85.522,85.437,0.25]
[1646667351576,1.56794177,85.519,85.437,0.25]
[1646667351774,1.56794177,85.519,85.435,24.8425]
[1646667351775,0.25,85.518,85.438,5.849]
[1646667351977,0.25,85.518,85.439,0.25]
[1646667352175,0.25,85.518,85.441,116.7]
[1646667352376,0.25,85.518,85.442,0.25]
[1646667352574,0.25,85.518,85.44,5.849]
[1646667352775,0.25,85.52,85.437,5.849]
[1646667352978,0.25,85.52,85.438,6.0]
[1646667353377,0.25,85.521,85.44,116.7]
[1646667353579,0.25,85.521,85.439,58.35]
[1646667353580,1.56794177,85.52,85.441,6.0]
[1646667353777,0.25,85.519,85.442,6.099]
[1646667353978,0.25,85.519,85.443,6.0]
[1646667354179,0.25,85.519,85.446,116.7]
[1646667354379,6.0,85.528,85.463,70.06]
[1646667354583,1.56794177,85.54,85.47,116.7]
[1646667354781,1.56794177,85.549,85.475,58.35]
[1646667354982,1.56794177,85.55,85.478,116.7]
[1646667355180,14.06,85.57,85.479,70.446]
[1646667355181,35.25582639,85.549,85.479,70.446]
[1646667355381,35.25582639,85.549,85.479,64.446]
[1646667355580,35.25582639,85.549,85.48,6.0]
[1646667355779,35.25582639,85.549,85.481,6.096]
[1646667355980,6.0,85.548,85.482,6.0]
[1646667356179,1.56794177,85.552,85.482,6.0]
[1646667356180,1.56794177,85.552,85.488,175.05]
[1646667356382,1.56794177,85.561,85.49,116.7]
[1646667356681,4.62275939,85.609,85.489,70.446]
[1646667356682,1.56794177,85.564,85.498,116.7]
[1646667356880,1.56794177,85.566,85.501,116.7]
[1646667357080,34.56150192,85.565,85.502,12.095]
[1646667357283,1.56794177,85.569,85.502,12.095]
[1646667357482,5.845,85.588,85.502,12.095]
[1646667357483,1.56794177,85.581,85.503,2.83613526]
[1646667357684,2.15497595,85.589,85.504,12.095]
[1646667358080,0.58703418,85.589,85.505,116.7]
[1646667358279,0.58703418,85.589,85.506,12.094]
[1646667358880,0.58703418,85.589,85.51,14.06]
[1646667359179,0.58703418,85.589,85.5,47.1905]
[1646667359180,1.56794177,85.585,85.511,6.094]
[1646667359380,1.56794177,85.58,85.511,6.094]
[1646667359579,1.56794177,85.58,85.512,6.0]
[1646667359781,44.81283706,85.579,85.513,6.094]
[1646667359982,44.81283706,85.579,85.514,6.0]
[1646667360181,44.81283706,85.579,85.515,6.094]
[1646667360582,44.81283706,85.579,85.516,6.0]
[1646667360780,44.81283706,85.579,85.517,5.844]
[1646667361079,44.81283706,85.579,85.518,6.0]
[1646667361380,0.58703418,85.589,85.52,14.06]
[1646667361584,0.58703418,85.589,85.522,116.7]
[1646667361783,0.58703418,85.589,85.524,116.7]
[1646667361981,0.58703418,85.589,85.526,116.7]
[1646667362182,0.58703418,85.589,85.531,116.7]
[1646667362484,0.58703418,85.589,85.53,14.06]
[1646667362485,1.56794177,85.633,85.534,4.63030651]
[1646667362683,100.0,85.641,85.538,58.35]
[1646667362883,1.56794177,85.661,85.552,5.65371408]
[1646667363082,1.56794177,85.667,85.565,116.7]
[1646667363283,5.84,85.666,85.571,58.35]
[1646667363484,42.27450521,85.665,85.572,53.566]
[1646667363683,1.56794177,85.66,85.572,53.566]
[1646667363885,1.56794177,85.656,85.572,53.566]
[1646667364085,1.56794177,85.654,85.572,53.566]
[1646667364385,6.25,85.653,85.572,6.0]
[1646667364585,47.70793596,85.652,85.554,24.7481]
[1646667364785,100.0,85.636,85.554,24.7481]
[1646667365086,46.34928421,85.634,85.554,24.7481]
[1646667365284,6.25,85.633,85.555,5.841]
[1646667365484,0.25,85.633,85.555,5.841]
[1646667365684,5.841,85.632,85.556,0.25]
[1646667365884,5.841,85.632,85.555,5.841]
[1646667365885,0.25,85.631,85.557,5.841]
[1646667366087,5.841,85.63,85.555,5.841]
[1646667366285,6.25,85.629,85.531,24.9358]
[1646667366486,6.25,85.629,85.555,0.03]
[1646667366687,16.14422386,85.628,85.555,0.03]
[1646667366885,47.20737231,85.608,85.555,0.03]
[1646667367086,14.06,85.6,85.555,0.03]
[1646667367387,116.7,85.598,85.555,0.03]
[1646667367587,116.7,85.598,85.473,47.7135]
[1646667367588,116.7,85.594,85.474,5.841]
[1646667367786,116.7,85.579,85.474,5.841]
[1646667367991,116.7,85.577,85.474,5.841]
[1646667368187,12.45668977,85.576,85.474,5.841]
[1646667368388,6.61068977,85.576,85.477,70.06]
[1646667368588,9.08613526,85.576,85.479,58.35]
[1646667368789,6.25,85.576,85.481,58.35]
[1646667369088,8.83613526,85.575,85.483,58.35]
[1646667369288,12.095,85.574,85.484,6.095]
[1646667369488,131.63113526,85.574,85.484,6.095]
[1646667369689,116.7,85.569,85.474,5.845]
[1646667369889,116.7,85.567,85.474,5.845]
[1646667370090,161.51992041,85.564,85.474,5.845]
[1646667370290,14.06,85.56,85.474,5.845]
[1646667370488,6.25,85.559,85.474,5.845]
[1646667370690,116.7,85.557,85.474,5.845]
[1646667370889,0.23419331,85.554,85.474,5.845]
[1646667371188,116.7,85.549,85.474,5.845]
[1646667371393,116.7,85.547,85.462,5.847]
[1646667371589,116.7,85.545,85.462,5.847]
[1646667371790,129.12138671,85.544,85.462,5.847]
[1646667371990,129.12138671,85.544,85.431,50.90213526]
[1646667372288,131.95752197,85.544,85.432,6.25]
[1646667372489,131.95752197,85.544,85.432,6.0]
[1646667372692,0.32438671,85.538,85.432,6.0]
[1646667372891,116.7,85.534,85.433,5.848]
[1646667373091,0.32438671,85.531,85.434,6.0]
[1646667373292,5.849,85.53,85.434,6.0]
[1646667373490,6.57438671,85.529,85.434,6.0]
[1646667373790,6.57438671,85.529,85.435,5.849]
[1646667373990,6.57438671,85.529,85.433,5.849]
[1646667373991,2.83613526,85.528,85.433,5.849]
[1646667374191,0.57438671,85.527,85.433,5.849]
[1646667374491,6.57438671,85.527,85.432,5.849]
[1646667374691,6.57438671,85.527,85.402,5.849]
[1646667374692,8.68513526,85.526,85.402,5.849]
[1646667374892,6.59368753,85.525,85.403,6.0]
[1646667375092,5.849,85.524,85.404,5.849]
[1646667375294,14.06,85.51,85.405,6.0]
[1646667375494,54.76270547,85.509,85.406,5.849]
[1646667375696,57.59884073,85.509,85.406,5.849]
[1646667375897,116.7,85.508,85.402,5.849]
[1646667376095,116.7,85.506,85.402,5.849]
[1646667376298,116.7,85.504,85.402,5.849]
[1646667376495,14.06,85.49,85.39,114.1]
[1646667376698,17.5685,85.48,85.39,114.1]
[1646667376899,12.102,85.479,85.39,114.1]
[1646667377499,2.83613526,85.478,85.39,114.1]
[1646667377801,12.53998445,85.477,85.391,0.25]
[1646667378199,12.102,85.477,85.391,0.25]
[1646667378397,12.102,85.477,85.372,6.25]
[1646667378797,12.102,85.477,85.372,9.08613526]
[1646667378998,12.102,85.477,85.373,2.83613526]
[1646667379199,12.102,85.477,85.374,6.25]
[1646667379398,11.852,85.477,85.374,6.25]
[1646667379602,11.852,85.477,85.375,2.83613526]
[1646667379800,11.852,85.477,85.376,6.25]
[1646667380000,30.41079819,85.476,85.376,6.25]
[1646667380205,46.17260905,85.475,85.377,1.33613526]
[1646667380424,0.20036967,85.474,85.378,0.25]
[1646667380619,5.853,85.473,85.378,0.25]
[1646667380821,6.25,85.472,85.378,0.25]
[1646667381020,31.6295,85.47,85.378,0.25]
[1646667381219,0.21566516,85.468,85.378,0.25]
[1646667381421,6.0,85.469,85.373,0.25]
[1646667381620,6.0,85.469,85.379,1.33613526]
[1646667381823,6.0,85.471,85.38,6.25]
[1646667382221,6.0,85.471,85.381,1.33613526]
[1646667382423,27.57466293,85.47,85.382,6.25]
[1646667382623,116.7,85.468,85.382,0.25]
[1646667382821,12.10130419,85.467,85.382,0.25]
[1646667383024,14.68913526,85.467,85.382,0.25]
[1646667383323,3.08613526,85.466,85.382,0.25]
[1646667383523,11.853,85.465,85.372,6.25]
[1646667383721,0.25,85.464,85.372,6.25]
[1646667383926,0.25,85.464,85.372,7.58613526]
[1646667384422,0.25,85.464,85.373,1.33613526]
[1646667384620,0.25,85.464,85.374,6.25]
[1646667384823,48.13675142,85.462,85.374,6.25]
[1646667385021,12.103,85.461,85.374,6.25]
[1646667385222,12.103,85.461,85.375,1.33613526]
[1646667385421,12.103,85.461,85.376,6.25]
[1646667385623,2.83613526,85.46,85.376,6.25]
[1646667385822,12.103,85.459,85.376,6.25]
[1646667386021,12.103,85.459,85.376,0.25]
[1646667386321,30.41079819,85.458,85.371,54.1742]
[1646667386525,12.103,85.457,85.371,5.852]
[1646667386721,17.5749,85.45,85.371,5.852]
[1646667386922,41.33287004,85.449,85.371,5.852]
[1646667387122,41.10933278,85.449,85.371,5.852]
[1646667387427,0.17437636,85.448,85.371,5.852]
[1646667387722,2.83613526,85.448,85.372,0.25]
[1646667387925,9.27797252,85.447,85.372,0.25]
[1646667388127,3.02797252,85.447,85.372,0.25]
[1646667388324,9.08613526,85.446,85.372,0.25]
[1646667388527,17.5761,85.44,85.371,5.852]
[1646667388726,116.7,85.429,85.371,5.852]
[1646667388930,0.73672437,85.428,85.307,6.11623472]
[1646667389427,0.48672437,85.426,85.307,6.11623472]
[1646667389630,5.857,85.425,85.308,6.0]
[1646667389930,48.3892343,85.423,85.31,17.5796]
[1646667390128,12.107,85.422,85.312,70.06]
[1646667390327,6.25,85.422,85.313,76.31]
[1646667390527,0.25,85.422,85.315,116.7]
[1646667390829,0.25,85.422,85.319,116.7]
[1646667391028,5.856,85.421,85.323,245.11]
[1646667391228,6.25,85.42,85.33,17.5744]
[1646667391429,6.25,85.42,85.331,6.25]
[1646667391629,6.0,85.42,85.332,116.7]
[1646667391829,6.0,85.421,85.334,116.7]
[1646667392029,6.0,85.422,85.336,116.7]
[1646667392230,6.0,85.422,85.34,17.5727]
[1646667392431,6.0,85.422,85.341,6.25]
[1646667392936,6.0,85.422,85.342,1.33613526]
[1646667393131,6.0,85.422,85.343,6.25]
[1646667393335,6.0,85.422,85.344,70.06]
[1646667393534,6.0,85.422,85.345,6.0]
[1646667393740,6.105,85.421,85.333,47.82343526]
[1646667393935,8.94113526,85.421,85.333,46.4873]
[1646667394136,116.7,85.419,85.333,46.4873]
[1646667394337,116.7,85.417,85.333,46.4873]
[1646667394535,12.106,85.416,85.333,46.4873]
[1646667394735,0.25,85.415,85.333,46.4873]
[1646667394936,5.856,85.414,85.333,46.4873]
[1646667395136,6.25,85.413,85.316,58.35]
[1646667395336,116.7,85.411,85.316,58.35]
[1646667395537,12.107,85.41,85.316,58.35]
[1646667395740,6.25,85.409,85.316,58.35]
[1646667396140,8.69313526,85.408,85.316,58.35]
[1646667396338,17.5815,85.4,85.32,17.5791]
[1646667396539,12.107,85.399,85.316,58.35]
[1646667396738,14.94313526,85.399,85.316,58.35]
[1646667397138,2.83613526,85.398,85.317,0.25]
[1646667397339,53.28523799,85.397,85.317,0.25]
[1646667397740,2.83613526,85.396,85.317,0.25]
[1646667397940,6.25,85.395,85.299,46.2418]
[1646667398141,116.7,85.389,85.3,6.0]
[1646667398342,116.7,85.387,85.3,6.0]
[1646667398546,116.7,85.385,85.3,6.0]
[1646667398742,128.807,85.384,85.3,6.0]
[1646667398942,131.64313526,85.384,85.3,6.0]
[1646667399143,128.807,85.384,85.3,6.0]
[1646667399345,2.83613526,85.383,85.301,0.25]
[1646667399547,12.107,85.382,85.301,0.25]
[1646667399743,12.107,85.382,85.3,6.0]
[1646667399945,2.83613526,85.381,85.3,6.0]
[1646667400145,116.7,85.379,85.289,58.35]
[1646667400348,0.31679508,85.376,85.289,58.35]
[1646667400545,116.7,85.372,85.289,58.35]
[1646667400744,130.76,85.37,85.289,58.35]
[1646667400946,116.7,85.368,85.289,58.35]
[1646667401147,14.06,85.37,85.289,58.35]
[1646667401148,116.7,85.366,85.289,58.35]
[1646667401346,17.5912,85.36,85.289,58.35]
[1646667401545,6.25,85.359,85.289,58.35]
[1646667402745,6.25,85.359,85.29,17.5867]
[1646667402947,0.25,85.359,85.29,17.5867]
[1646667403148,6.0,85.37,85.296,116.7]
[1646667403347,6.0,85.37,85.298,116.7]
[1646667403547,6.0,85.37,85.299,122.95]
[1646667403753,6.0,85.392,85.304,70.06]
[1646667403950,6.0,85.392,85.306,70.06]
[1646667403951,5.857,85.391,85.306,70.06]
[1646667404149,40.57937031,85.39,85.307,76.31]
[1646667404346,0.25,85.389,85.31,17.579]
[1646667404547,6.0,85.389,85.312,70.06]
[1646667404746,5.857,85.411,85.314,70.06]
[1646667404948,2.83613526,85.419,85.313,6.25]
[1646667404949,2.83613526,85.419,85.316,70.06]
[1646667405149,3.08668189,85.463,85.313,6.25]
[1646667405150,1.56794177,85.443,85.332,58.35]
[1646667405348,1.56794177,85.458,85.361,186.76]
[1646667405548,38.20441088,85.457,85.363,70.06]
[1646667405745,38.20441088,85.457,85.362,54.2842]
[1646667405746,5.854,85.456,85.365,70.06]
[1646667405947,5.854,85.456,85.367,70.06]
[1646667406245,6.0,85.455,85.368,6.25]
[1646667406449,125.53613526,85.455,85.368,0.25]
[1646667406647,116.7,85.453,85.362,48.0342]
[1646667406851,1.56794177,85.45,85.333,0.11540749]
[1646667407046,12.104,85.452,85.333,0.11540749]
[1646667407047,1.56794177,85.445,85.333,0.11540749]
[1646667407247,6.25,85.444,85.349,116.7]
[1646667407446,5.854,85.443,85.349,116.7]
[1646667407646,6.0,85.442,85.36,17.5725]
[1646667407848,6.0,85.442,85.361,6.0]
[1646667408047,6.0,85.442,85.362,116.95]
[1646667408247,6.0,85.456,85.368,116.7]
[1646667408447,6.0,85.456,85.37,116.7]
[1646667408646,6.0,85.456,85.38,17.5644]
[1646667408846,6.0,85.456,85.381,6.25]
[1646667409248,6.0,85.456,85.381,0.25]
[1646667409845,6.0,85.456,85.39,17.5653]
[1646667410049,2.83613526,85.455,85.391,0.25]
[1646667410248,6.25,85.454,85.391,0.25]
[1646667411050,6.0,85.456,85.4,17.5647]
[1646667411251,6.0,85.456,85.387,186.76]
[1646667411252,6.0,85.456,85.401,6.25]
[1646667411848,5.852,85.508,85.401,0.25]
[1646667411849,7.56794177,85.485,85.401,0.25]
[1646667412050,5.851,85.484,85.41,17.5569]
[1646667412250,6.25,85.483,85.411,0.25]
[1646667412451,5.851,85.482,85.411,0.25]
[1646667412650,44.11335437,85.481,85.411,0.25]
[1646667412852,5.851,85.48,85.411,0.25]
[1646667413051,6.0,85.479,85.411,0.25]
[1646667413252,5.851,85.478,85.42,17.5598]
[1646667413452,6.0,85.477,85.421,0.25]
[1646667413755,2.83613526,85.477,85.401,47.8084]
[1646667413953,100.0,85.468,85.401,47.8084]
[1646667414153,12.35868061,85.467,85.368,17.8066]
[1646667414351,116.7,85.466,85.369,47.2995]
[1646667414553,123.05968061,85.465,85.369,47.2995]
[1646667414757,6.25,85.464,85.369,47.2995]
[1646667414951,5.853,85.463,85.369,47.2995]
[1646667415151,17.5688,85.45,85.38,17.5692]
[1646667415351,54.36055669,85.449,85.381,0.25]
[1646667416152,17.5693,85.44,85.381,0.25]
[1646667416352,6.25,85.439,85.381,0.25]
[1646667416552,6.25,85.439,85.369,47.2995]
[1646667416755,3.08613526,85.439,85.369,47.2995]
[1646667416952,6.0,85.438,85.369,47.2995]
[1646667417152,0.25,85.437,85.369,47.2995]
[1646667417353,3.08613526,85.437,85.369,47.2995]
[1646667417653,116.7,85.435,85.369,47.2995]
[1646667417857,116.7,85.429,85.37,0.25]
[1646667418055,116.7,85.429,85.35,17.5753]
[1646667418056,0.29631081,85.426,85.311,119.0754]
[1646667418254,0.29631081,85.424,85.313,116.7]
[1646667418456,5.856,85.423,85.315,116.7]
[1646667418653,38.86938276,85.422,85.315,116.7]
[1646667418855,5.856,85.421,85.317,116.7]
[1646667419053,116.7,85.419,85.319,175.05]
[1646667419254,116.7,85.417,85.32,6.25]
[1646667419454,12.106,85.418,85.32,6.25]
[1646667419455,6.106,85.416,85.32,6.25]
[1646667419655,6.0,85.415,85.32,6.0]
[1646667419854,6.107,85.414,85.319,175.05]
[1646667420055,6.0,85.413,85.319,175.05]
[1646667420255,17.581,85.4,85.32,17.5814]
[1646667420455,6.25,85.399,85.32,17.5814]
[1646667421059,6.25,85.399,85.321,0.25]
[1646667421256,6.25,85.399,85.33,17.5781]
[1646667421456,6.25,85.399,85.331,0.25]
[1646667422456,6.25,85.399,85.34,17.5777]
[1646667422658,6.25,85.399,85.341,0.25]
[1646667424365,0.25,85.399,85.35,17.5756]
[1646667424563,0.25,85.417,85.351,0.25]
[1646667424765,0.25,85.42,85.351,0.25]
[1646667425565,17.5755,85.41,85.351,0.25]
[1646667425764,11.856,85.409,85.351,0.25]
[1646667426366,6.0,85.409,85.351,0.25]
[1646667426765,6.0,85.42,85.347,186.76]
[1646667426969,6.0,85.421,85.36,17.5739]
[1646667427168,6.0,85.421,85.361,6.25]
[1646667427565,11.855,85.444,85.361,6.25]
[1646667427765,11.855,85.444,85.362,6.0]
[1646667427965,6.0,85.444,85.363,0.25]
[1646667428165,6.0,85.444,85.37,17.5678]
[1646667428367,37.47849802,85.443,85.371,6.25]
[1646667428567,17.5687,85.44,85.363,0.25]
[1646667428767,6.25,85.439,85.363,0.25]
[1646667429193,119.53613526,85.438,85.363,0.25]
[1646667429387,119.53613526,85.438,85.362,0.25]
[1646667429388,17.571,85.43,85.362,0.25]
[1646667429593,6.25,85.429,85.342,6.0]
[1646667429988,9.08613526,85.429,85.342,6.0]
[1646667430287,5.855,85.428,85.342,6.0]
[1646667430489,6.25,85.427,85.342,6.0]
[1646667430889,6.25,85.427,85.34,46.7956]
[1646667430890,116.7,85.426,85.34,46.7956]
[1646667431088,17.5766,85.41,85.35,17.576]
[1646667431287,50.02776103,85.409,85.35,17.576]
[1646667432189,50.02776103,85.409,85.351,0.25]
[1646667432987,50.02776103,85.409,85.36,17.5736]
[1646667433188,50.02776103,85.409,85.361,0.25]
[1646667433591,49.77776103,85.409,85.361,0.25]
[1646667434188,49.77776103,85.409,85.35,17.5757]
[1646667434391,49.77776103,85.409,85.351,0.25]
[1646667434589,49.77776103,85.409,85.343,0.25]
[1646667434792,0.25,85.408,85.343,0.25]
[1646667435389,0.25,85.408,85.34,46.7956]
[1646667435590,17.577,85.4,85.311,89.5226]
[1646667435790,12.107,85.399,85.312,52.0003]
[1646667435989,9.08613526,85.399,85.312,46.0003]
[1646667436190,0.27918902,85.397,85.312,46.0003]
[1646667436490,0.27918902,85.395,85.312,46.0003]
[1646667436692,17.5832,85.38,85.312,46.0003]
[1646667436891,50.84308984,85.379,85.312,46.0003]
[1646667437094,0.27918902,85.378,85.312,46.0003]
[1646667437298,53.6792251,85.379,85.312,46.0003]
[1646667437493,2.83613526,85.377,85.312,46.0003]
[1646667437693,6.25,85.376,85.312,46.0003]
[1646667437893,17.5857,85.36,85.312,46.0003]
[1646667438092,6.25,85.359,85.312,46.0003]
[1646667438293,6.25,85.359,85.313,0.25]
[1646667438895,6.25,85.359,85.32,17.5822]
[1646667439095,2.83613526,85.375,85.312,46.0003]
[1646667439096,6.0,85.373,85.321,0.25]
[1646667439295,0.25,85.372,85.321,0.25]
[1646667440098,0.25,85.372,85.33,17.5797]
[1646667440297,0.25,85.377,85.331,0.25]
[1646667440899,6.0,85.378,85.331,0.25]
[1646667442001,6.0,85.378,85.32,17.582]
[1646667442200,0.25,85.377,85.321,0.25]
[1646667443202,116.95,85.377,85.221,377.33735212]
[1646667443402,116.7,85.369,85.27,58.35]
[1646667443603,6.25,85.368,85.27,58.35]
[1646667443902,9.08613526,85.368,85.271,70.06]
[1646667444101,9.08613526,85.368,85.27,58.35]
[1646667444102,6.25,85.368,85.287,94.063]
[1646667444303,6.0,85.376,85.288,116.7]
[1646667444503,6.0,85.376,85.32,17.5756]
[1646667444705,8.69313526,85.407,85.32,17.5756]
[1646667445004,5.857,85.407,85.322,116.7]
[1646667445203,2.83613526,85.423,85.324,116.7]
[1646667445403,26.10273568,85.439,85.335,70.06]
[1646667445404,1.56794177,85.43,85.335,70.06]
[1646667445605,34.38080219,85.423,85.336,52.3481]
[1646667446004,0.25,85.422,85.336,52.3481]
[1646667446204,0.25,85.422,85.337,6.0]
[1646667446406,0.25,85.422,85.338,0.25]
[1646667446805,6.25,85.422,85.338,0.25]
[1646667447204,17.5727,85.42,85.34,17.5745]
[1646667447404,6.25,85.419,85.341,6.25]
[1646667447609,6.0,85.419,85.338,0.25]
[1646667447804,8.83613526,85.419,85.338,0.25]
[1646667448009,2.83613526,85.418,85.338,0.25]
[1646667448209,6.0,85.417,85.338,0.25]
[1646667448810,2.83613526,85.416,85.338,0.25]
[1646667449009,6.25,85.415,85.338,0.25]
[1646667449209,17.5745,85.41,85.35,17.5745]
[1646667449412,6.25,85.409,85.351,0.25]
[1646667452817,2.83613526,85.408,85.351,0.25]
[1646667453021,6.25,85.407,85.351,0.25]
[1646667453718,6.0,85.406,85.351,0.25]
[1646667453917,0.25,85.407,85.351,0.25]
[1646667454117,0.25,85.408,85.351,0.25]
[1646667455640,0.25,85.408,85.36,17.573]
[1646667455840,0.25,85.408,85.361,0.25]
[1646667456038,0.25,85.418,85.361,0.25]
[1646667456437,2.83613526,85.417,85.361,0.25]
[1646667456637,6.25,85.416,85.361,0.25]
[1646667456839,6.25,85.416,85.349,58.35]
[1646667456840,6.25,85.416,85.35,0.25]
[1646667457041,2.83613526,85.415,85.35,0.25]
[1646667457240,17.5747,85.41,85.35,17.8247]
[1646667457439,6.25,85.409,85.35,17.8247]
[1646667458040,6.25,85.409,85.35,0.25]
[1646667458242,6.25,85.409,85.32,17.6771]
[1646667458243,17.5765,85.4,85.337,6.25]
[1646667458440,6.25,85.399,85.337,6.25]
[1646667458639,9.08613526,85.399,85.337,6.25]
[1646667458839,2.83613526,85.398,85.337,6.25]
[1646667459040,48.57988013,85.396,85.337,6.25]
[1646667459239,6.25,85.395,85.337,6.25]
[1646667459941,6.25,85.395,85.313,58.35]
[1646667460141,0.18823131,85.389,85.314,54.1005]
[1646667460343,0.18823131,85.389,85.314,48.1005]
[1646667460344,6.25,85.389,85.314,48.1005]
[1646667460541,2.83613526,85.388,85.314,48.1005]
[1646667460743,6.25,85.387,85.314,48.1005]
[1646667461141,17.5833,85.37,85.287,30.11938244]
[1646667461343,17.5833,85.37,85.288,54.1005]
[1646667461344,48.53424408,85.369,85.288,54.1005]
[1646667461540,51.37037934,85.369,85.288,54.1005]
[1646667461742,1.56794177,85.389,85.29,4.66410605]
[1646667461942,1.56794177,85.403,85.301,4.9971045]
[1646667462243,1.56794177,85.424,85.336,116.7]
[1646667462442,46.9099,85.463,85.351,186.76]
[1646667462443,1.56794177,85.445,85.351,186.76]
[1646667462641,37.19982431,85.448,85.367,186.76]
[1646667462843,37.19982431,85.448,85.371,186.76]
[1646667463042,37.19982431,85.448,85.381,187.35692568]
[1646667463245,37.19982431,85.448,85.384,0.59692568]
[1646667463443,37.19982431,85.448,85.385,186.76]
[1646667463641,37.19982431,85.448,85.389,116.7]
[1646667463842,37.19982431,85.448,85.39,59.19692568]
[1646667464043,37.19982431,85.448,85.394,116.7]
[1646667464244,37.19982431,85.448,85.4,75.9114]
[1646667464443,37.19982431,85.448,85.401,6.84692568]
[1646667464646,37.19982431,85.448,85.401,6.25]
[1646667464845,37.19982431,85.448,85.402,0.24312537]
[1646667465644,37.19982431,85.448,85.41,17.5618]
[1646667465849,37.19982431,85.448,85.411,6.25]
[1646667466048,5.852,85.483,85.411,6.25]